[Event "Titled Tuesday Blitz May 24 Late 2022"]
[White "Sjugirov, Sanan"]
[Black "Suder, Jakub"]
[WhiteFideId "4189302"]
[BlackFideId "1195310"]
[WhiteElo "2602"]
[BlackElo "2058"]
[Result "1-0"]
[Round "05"]
[TimeControl "180+1"]
[Date "2022.05.24"]
[WhiteClock "0:02:05"]
[BlackClock "0:01:05"]

1. d4 {[%clk 0:03:00]}  d5 {[%clk 0:02:59]} 2. c4 {[%clk 0:03:00]}  e6 {[%clk 0:02:58]} 3. Nc3 {[%clk 0:02:59]}  a6 {[%clk 0:02:59]} 4. cxd5 {[%clk 0:02:59]}  exd5 {[%clk 0:02:59]} 5. Nf3 {[%clk 0:02:59]}  Nf6 {[%clk 0:02:59]} 6. Bg5 {[%clk 0:02:59]}  Be6 {[%clk 0:02:59]} 7. e3 {[%clk 0:02:59]}  Nbd7 {[%clk 0:02:58]} 8. Bd3 {[%clk 0:02:59]}  Bd6 {[%clk 0:02:58]} 9. O-O {[%clk 0:02:53]}  c6 {[%clk 0:02:58]} 10. Bf4 {[%clk 0:02:52]}  Qb8 {[%clk 0:02:57]} 11. Qd2 {[%clk 0:02:51]}  O-O {[%clk 0:02:56]} 12. h3 {[%clk 0:02:49]}  Re8 {[%clk 0:02:48]} 13. a4 {[%clk 0:02:48]}  b6 {[%clk 0:02:44]} 14. a5 {[%clk 0:02:42]}  b5 {[%clk 0:02:43]} 15. b4 {[%clk 0:02:38]}  Rc8 {[%clk 0:02:31]} 16. Ne2 {[%clk 0:02:36]}  Ne8 {[%clk 0:02:27]} 17. Rac1 {[%clk 0:02:30]}  Nf8 {[%clk 0:02:22]} 18. Rfe1 {[%clk 0:02:18]}  Qb7 {[%clk 0:02:22]} 19. Bb1 {[%clk 0:02:11]}  Qe7 {[%clk 0:02:18]} 20. Bxd6 {[%clk 0:02:10]}  Nxd6 {[%clk 0:02:19]} 21. Nf4 {[%clk 0:02:11]}  Nc4 {[%clk 0:02:16]} 22. Qc3 {[%clk 0:02:10]}  Rab8 {[%clk 0:02:05]} 23. Nd3 {[%clk 0:02:10]}  Nd7 {[%clk 0:02:05]} 24. Nc5 {[%clk 0:02:09]}  Nxc5 {[%clk 0:02:04]} 25. dxc5 {[%clk 0:02:10]}  Bd7 {[%clk 0:01:58]} 26. e4 {[%clk 0:02:07]}  dxe4 {[%clk 0:01:57]} 27. Bxe4 {[%clk 0:02:07]}  Be6 {[%clk 0:01:52]} 28. Bf5 {[%clk 0:02:06]}  Re8 {[%clk 0:01:49]} 29. Bxe6 {[%clk 0:02:05]}  fxe6 {[%clk 0:01:49]} 30. Ne5 {[%clk 0:02:06]}  Nxe5 {[%clk 0:01:46]} 31. Rxe5 {[%clk 0:02:07]}  Rbd8 {[%clk 0:01:44]} 32. Rce1 {[%clk 0:02:07]}  Qf7 {[%clk 0:01:41]} 33. Qe3 {[%clk 0:02:06]}  Kf8 {[%clk 0:01:18]} 34. Rxe6 {[%clk 0:02:05]}  Rxe6 {[%clk 0:01:09]} 35. Qxe6 {[%clk 0:02:06]}  Qxe6 {[%clk 0:01:03]} 36. Rxe6 {[%clk 0:02:07]}  Rd1+ {[%clk 0:01:02]} 37. Kh2 {[%clk 0:02:07]}  Rd4 {[%clk 0:01:03]} 38. Rxc6 {[%clk 0:02:06]}  Rxb4 {[%clk 0:01:04]} 39. Rxa6 {[%clk 0:02:06]}  Rc4 {[%clk 0:01:05]} 40. c6 {[%clk 0:02:06]}  b4 {[%clk 0:01:05]} 41. Rb6 {[%clk 0:02:06]}  b3 {[%clk 0:01:05]} 42. Rxb3 {[%clk 0:02:05]}  Rxc6 {[%clk 0:01:05]} 43. Ra3 {[%clk 0:02:05]} 1-0


[Site "https://www.chess.com"]

[Event "Titled Tuesday Blitz May 24 Late 2022"]
[White "Skliarov, Viktor"]
[Black "Garagulya, Konstantin"]
[WhiteFideId "14106736"]
[BlackFideId "4128931"]
[WhiteElo "2229"]
[BlackElo "2329"]
[Result "1-0"]
[Round "05"]
[TimeControl "180+1"]
[Date "2022.05.25"]
[WhiteClock "0:00:10"]
[BlackClock "0:00:18"]

1. e4 {[%clk 0:02:57]}  c5 {[%clk 0:02:58]} 2. Nf3 {[%clk 0:02:57]}  a6 {[%clk 0:02:54]} 3. c3 {[%clk 0:02:57]}  d5 {[%clk 0:02:52]} 4. exd5 {[%clk 0:02:56]}  Qxd5 {[%clk 0:02:53]} 5. Na3 {[%clk 0:02:56]}  Nf6 {[%clk 0:02:52]} 6. Nc4 {[%clk 0:02:46]}  Nbd7 {[%clk 0:02:51]} 7. a4 {[%clk 0:02:45]}  b6 {[%clk 0:02:49]} 8. a5 {[%clk 0:02:38]}  b5 {[%clk 0:02:47]} 9. Ne3 {[%clk 0:02:39]}  Qc6 {[%clk 0:02:46]} 10. d4 {[%clk 0:02:36]}  Bb7 {[%clk 0:02:46]} 11. Be2 {[%clk 0:02:09]}  e6 {[%clk 0:02:41]} 12. O-O {[%clk 0:02:09]}  Be7 {[%clk 0:02:39]} 13. Ne5 {[%clk 0:02:03]}  Qc7 {[%clk 0:02:30]} 14. Nxd7 {[%clk 0:01:40]}  Qxd7 {[%clk 0:02:26]} 15. dxc5 {[%clk 0:01:38]}  Bxc5 {[%clk 0:02:21]} 16. c4 {[%clk 0:01:17]}  b4 {[%clk 0:02:12]} 17. b3 {[%clk 0:01:07]}  O-O {[%clk 0:02:05]} 18. Qxd7 {[%clk 0:00:48]}  Nxd7 {[%clk 0:02:04]} 19. Bb2 {[%clk 0:00:49]}  Rfd8 {[%clk 0:01:56]} 20. Rfd1 {[%clk 0:00:46]}  Nf6 {[%clk 0:01:51]} 21. Kf1 {[%clk 0:00:32]}  Kf8 {[%clk 0:01:51]} 22. Rxd8+ {[%clk 0:00:19]}  Rxd8 {[%clk 0:01:48]} 23. Rd1 {[%clk 0:00:20]}  Rxd1+ {[%clk 0:01:47]} 24. Bxd1 {[%clk 0:00:21]}  Ne4 {[%clk 0:01:24]} 25. Bc2 {[%clk 0:00:19]}  Nc3 {[%clk 0:01:22]} 26. Nd1 {[%clk 0:00:17]}  Nxd1 {[%clk 0:01:11]} 27. Bxd1 {[%clk 0:00:18]}  f6 {[%clk 0:01:09]} 28. f3 {[%clk 0:00:18]}  e5 {[%clk 0:01:08]} 29. Bc2 {[%clk 0:00:19]}  h6 {[%clk 0:00:58]} 30. Bg6 {[%clk 0:00:17]}  Bd6 {[%clk 0:00:54]} 31. h3 {[%clk 0:00:15]}  Bc7 {[%clk 0:00:47]} 32. Bc1 {[%clk 0:00:15]}  Bxa5 {[%clk 0:00:47]} 33. Be3 {[%clk 0:00:16]}  Bd8 {[%clk 0:00:42]} 34. Bc5+ {[%clk 0:00:14]}  Be7 {[%clk 0:00:42]} 35. Bb6 {[%clk 0:00:15]}  Bc6 {[%clk 0:00:39]} 36. Ke2 {[%clk 0:00:14]}  Bd6 {[%clk 0:00:38]} 37. Kd3 {[%clk 0:00:13]}  Ke7 {[%clk 0:00:38]} 38. Be4 {[%clk 0:00:09]}  Kd7 {[%clk 0:00:36]} 39. Bxc6+ {[%clk 0:00:04]}  Kxc6 {[%clk 0:00:36]} 40. Bd8 {[%clk 0:00:04]}  f5 {[%clk 0:00:37]} 41. g4 {[%clk 0:00:03]}  g6 {[%clk 0:00:36]} 42. Bf6 {[%clk 0:00:03]}  h5 {[%clk 0:00:36]} 43. Bg7 {[%clk 0:00:03]}  Kd7 {[%clk 0:00:22]} 44. gxh5 {[%clk 0:00:03]}  gxh5 {[%clk 0:00:21]} 45. Bf6 {[%clk 0:00:03]}  Ke6 {[%clk 0:00:21]} 46. Bd8 {[%clk 0:00:03]}  Bc5 {[%clk 0:00:21]} 47. Bc7 {[%clk 0:00:03]}  Bd6 {[%clk 0:00:18]} 48. Bd8 {[%clk 0:00:04]}  Kf7 {[%clk 0:00:17]} 49. Bb6 {[%clk 0:00:04]}  Ke7 {[%clk 0:00:14]} 50. c5 {[%clk 0:00:04]}  Bb8 {[%clk 0:00:13]} 51. Kc4 {[%clk 0:00:05]}  Ke6 {[%clk 0:00:13]} 52. Kxb4 {[%clk 0:00:05]}  e4 {[%clk 0:00:13]} 53. fxe4 {[%clk 0:00:05]}  fxe4 {[%clk 0:00:14]} 54. Kc4 {[%clk 0:00:06]}  Kf5 {[%clk 0:00:14]} 55. c6 {[%clk 0:00:05]}  Kf4 {[%clk 0:00:12]} 56. c7 {[%clk 0:00:06]}  Bxc7 {[%clk 0:00:13]} 57. Bxc7+ {[%clk 0:00:07]}  Kf3 {[%clk 0:00:13]} 58. Bb6 {[%clk 0:00:06]}  e3 {[%clk 0:00:14]} 59. Kd3 {[%clk 0:00:06]}  e2 {[%clk 0:00:14]} 60. Ba5 {[%clk 0:00:06]}  Kg3 {[%clk 0:00:13]} 61. Kxe2 {[%clk 0:00:06]}  Kxh3 {[%clk 0:00:14]} 62. Kf1 {[%clk 0:00:06]}  Kg4 {[%clk 0:00:15]} 63. Kg2 {[%clk 0:00:06]}  Kf4 {[%clk 0:00:15]} 64. Kh3 {[%clk 0:00:07]}  Ke4 {[%clk 0:00:15]} 65. Kh4 {[%clk 0:00:07]}  Kd3 {[%clk 0:00:15]} 66. Kxh5 {[%clk 0:00:08]}  Kc2 {[%clk 0:00:16]} 67. b4 {[%clk 0:00:08]}  Kb3 {[%clk 0:00:17]} 68. Kg4 {[%clk 0:00:09]}  Ka4 {[%clk 0:00:18]} 69. Kf3 {[%clk 0:00:10]} 1-0


[Site "https://www.chess.com"]

[Event "Titled Tuesday Blitz May 24 Late 2022"]
[White "Steinberg, Nitzan"]
[Black "Maltsevskaya, Aleksandra"]
[WhiteFideId "2801795"]
[BlackFideId "24174041"]
[WhiteElo "2471"]
[BlackElo "2235"]
[Result "1-0"]
[Round "05"]
[TimeControl "180+1"]
[Date "2022.05.24"]
[WhiteClock "0:00:58"]
[BlackClock "0:00:09"]

1. Nf3 {[%clk 0:02:59]}  d5 {[%clk 0:02:59]} 2. d4 {[%clk 0:02:59]}  c5 {[%clk 0:02:58]} 3. dxc5 {[%clk 0:02:58]}  Nc6 {[%clk 0:02:57]} 4. c3 {[%clk 0:02:58]}  e5 {[%clk 0:02:55]} 5. b4 {[%clk 0:02:58]}  a6 {[%clk 0:02:45]} 6. e3 {[%clk 0:02:58]}  Nf6 {[%clk 0:02:44]} 7. Be2 {[%clk 0:02:58]}  Bg4 {[%clk 0:02:40]} 8. h3 {[%clk 0:02:59]}  Bh5 {[%clk 0:02:40]} 9. g4 {[%clk 0:02:58]}  Bg6 {[%clk 0:02:38]} 10. Bb2 {[%clk 0:02:58]}  h5 {[%clk 0:02:30]} 11. g5 {[%clk 0:02:58]}  Ne4 {[%clk 0:02:27]} 12. h4 {[%clk 0:02:58]}  Be7 {[%clk 0:02:16]} 13. Nbd2 {[%clk 0:02:54]}  O-O {[%clk 0:02:16]} 14. Nxe4 {[%clk 0:02:50]}  dxe4 {[%clk 0:02:16]} 15. Nd2 {[%clk 0:02:49]}  a5 {[%clk 0:02:08]} 16. a3 {[%clk 0:02:46]}  b6 {[%clk 0:02:08]} 17. b5 {[%clk 0:02:41]}  Na7 {[%clk 0:02:06]} 18. c6 {[%clk 0:02:42]}  Bc5 {[%clk 0:02:05]} 19. c4 {[%clk 0:02:38]}  a4 {[%clk 0:02:03]} 20. Bxh5 {[%clk 0:02:35]}  Bh7 {[%clk 0:01:48]} 21. Bxe5 {[%clk 0:02:21]}  Qe7 {[%clk 0:01:42]} 22. Bb2 {[%clk 0:02:19]}  Rad8 {[%clk 0:01:42]} 23. Qe2 {[%clk 0:02:18]}  Rd3 {[%clk 0:01:40]} 24. O-O {[%clk 0:02:09]}  Rfd8 {[%clk 0:01:39]} 25. Nb1 {[%clk 0:02:03]}  Bd6 {[%clk 0:01:37]} 26. Bd4 {[%clk 0:01:50]}  Bc7 {[%clk 0:01:34]} 27. Kg2 {[%clk 0:01:37]}  Bf5 {[%clk 0:01:10]} 28. Bg4 {[%clk 0:01:34]}  Qe6 {[%clk 0:01:09]} 29. Bxf5 {[%clk 0:01:22]}  Qxf5 {[%clk 0:01:10]} 30. f3 {[%clk 0:01:22]}  R8xd4 {[%clk 0:01:05]} 31. exd4 {[%clk 0:00:59]}  Qf4 {[%clk 0:00:31]} 32. Kg1 {[%clk 0:00:57]}  exf3 {[%clk 0:00:12]} 33. Qf2 {[%clk 0:00:57]}  Qg4+ {[%clk 0:00:12]} 34. Kh1 {[%clk 0:00:57]}  Qh3+ {[%clk 0:00:09]} 35. Kg1 {[%clk 0:00:58]} 1-0


[Site "https://www.chess.com"]

[Event "Titled Tuesday Blitz May 24 Late 2022"]
[White "Stojanovski, Sandi"]
[Black "Krishnan, Varun"]
[WhiteFideId "1403249"]
[BlackFideId "5054508"]
[WhiteElo "2334"]
[BlackElo "2541"]
[Result "1-0"]
[Round "05"]
[TimeControl "180+1"]
[Date "2022.05.25"]
[WhiteClock "0:00:01"]
[BlackClock "0:00:06"]

1. d3 {[%clk 0:03:00]}  e5 {[%clk 0:02:56]} 2. Nf3 {[%clk 0:03:01]}  Nc6 {[%clk 0:02:54]} 3. g3 {[%clk 0:03:00]}  d5 {[%clk 0:02:53]} 4. Bg2 {[%clk 0:03:00]}  Nf6 {[%clk 0:02:49]} 5. O-O {[%clk 0:03:01]}  Be7 {[%clk 0:02:47]} 6. Bg5 {[%clk 0:02:57]}  O-O {[%clk 0:02:46]} 7. Nc3 {[%clk 0:02:52]}  Be6 {[%clk 0:02:44]} 8. e4 {[%clk 0:02:34]}  d4 {[%clk 0:02:35]} 9. Bxf6 {[%clk 0:02:33]}  Bxf6 {[%clk 0:02:33]} 10. Nd5 {[%clk 0:02:34]}  Bxd5 {[%clk 0:02:31]} 11. exd5 {[%clk 0:02:35]}  Qxd5 {[%clk 0:02:31]} 12. Re1 {[%clk 0:02:35]}  Qd6 {[%clk 0:02:13]} 13. Nd2 {[%clk 0:02:35]}  Rfe8 {[%clk 0:02:11]} 14. Ne4 {[%clk 0:02:21]}  Qe7 {[%clk 0:02:11]} 15. Qf3 {[%clk 0:02:16]}  a5 {[%clk 0:02:04]} 16. Nxf6+ {[%clk 0:02:08]}  Qxf6 {[%clk 0:02:02]} 17. Qd5 {[%clk 0:01:50]}  a4 {[%clk 0:01:53]} 18. a3 {[%clk 0:01:48]}  Ra5 {[%clk 0:01:39]} 19. Qd7 {[%clk 0:01:33]}  Qe6 {[%clk 0:00:52]} 20. Qxc7 {[%clk 0:01:28]}  Rb5 {[%clk 0:00:44]} 21. Bxc6 {[%clk 0:01:09]}  bxc6 {[%clk 0:00:39]} 22. Rab1 {[%clk 0:01:04]}  h5 {[%clk 0:00:35]} 23. h4 {[%clk 0:01:01]}  g5 {[%clk 0:00:29]} 24. hxg5 {[%clk 0:00:43]}  h4 {[%clk 0:00:29]} 25. Kg2 {[%clk 0:00:26]}  h3+ {[%clk 0:00:24]} 26. Kh2 {[%clk 0:00:19]}  Qf5 {[%clk 0:00:19]} 27. f4 {[%clk 0:00:16]}  Rc8 {[%clk 0:00:18]} 28. Qd6 {[%clk 0:00:12]}  exf4 {[%clk 0:00:17]} 29. Qxf4 {[%clk 0:00:11]}  Qg6 {[%clk 0:00:14]} 30. Re5 {[%clk 0:00:09]}  Rcb8 {[%clk 0:00:08]} 31. Rbe1 {[%clk 0:00:07]}  Rxb2 {[%clk 0:00:07]} 32. Re8+ {[%clk 0:00:07]}  Rxe8 {[%clk 0:00:07]} 33. Rxe8+ {[%clk 0:00:04]}  Kg7 {[%clk 0:00:07]} 34. Re2 {[%clk 0:00:05]}  Rb5 {[%clk 0:00:06]} 35. Qxd4+ {[%clk 0:00:04]}  Kh7 {[%clk 0:00:06]} 36. Qh4+ {[%clk 0:00:04]}  Kg7 {[%clk 0:00:06]} 37. Qd4+ {[%clk 0:00:03]}  Kh7 {[%clk 0:00:07]} 38. Qh4+ {[%clk 0:00:02]}  Kg7 {[%clk 0:00:07]} 39. Re8 {[%clk 0:00:02]}  f6 {[%clk 0:00:06]} 40. Qh8+ {[%clk 0:00:02]}  Kf7 {[%clk 0:00:06]} 41. Qf8# {[%clk 0:00:01]} 1-0


[Site "https://www.chess.com"]

[Event "Titled Tuesday Blitz May 24 Late 2022"]
[White "Szente Varga, Fruzsina"]
[Black "Richter, Nils"]
[WhiteFideId "712264"]
[BlackFideId "12990809"]
[WhiteElo "1994"]
[BlackElo "2243"]
[Result "1-0"]
[Round "05"]
[TimeControl "180+1"]
[Date "2022.05.25"]
[WhiteClock "0:00:23"]
[BlackClock "0:00:24"]

1. e4 {[%clk 0:03:00]}  c5 {[%clk 0:02:52]} 2. Nf3 {[%clk 0:03:00]}  Nc6 {[%clk 0:02:49]} 3. Bb5 {[%clk 0:03:00]}  g6 {[%clk 0:02:48]} 4. O-O {[%clk 0:02:59]}  Bg7 {[%clk 0:02:48]} 5. Nc3 {[%clk 0:02:53]}  e5 {[%clk 0:02:40]} 6. d3 {[%clk 0:02:50]}  Nge7 {[%clk 0:02:39]} 7. Bg5 {[%clk 0:02:48]}  O-O {[%clk 0:02:32]} 8. Nd5 {[%clk 0:02:45]}  f6 {[%clk 0:02:29]} 9. Be3 {[%clk 0:02:43]}  Nxd5 {[%clk 0:02:24]} 10. exd5 {[%clk 0:02:44]}  Nd4 {[%clk 0:02:25]} 11. Bc4 {[%clk 0:02:41]}  d6 {[%clk 0:02:24]} 12. Nxd4 {[%clk 0:02:23]}  cxd4 {[%clk 0:02:22]} 13. Bd2 {[%clk 0:02:23]}  Bd7 {[%clk 0:02:19]} 14. a4 {[%clk 0:02:22]}  f5 {[%clk 0:02:18]} 15. Qe2 {[%clk 0:02:10]}  Qf6 {[%clk 0:02:15]} 16. f4 {[%clk 0:02:09]}  Rae8 {[%clk 0:02:12]} 17. fxe5 {[%clk 0:02:07]}  Rxe5 {[%clk 0:02:12]} 18. Qf2 {[%clk 0:02:05]}  Re7 {[%clk 0:02:04]} 19. a5 {[%clk 0:01:46]}  g5 {[%clk 0:02:02]} 20. Rae1 {[%clk 0:01:43]}  Rfe8 {[%clk 0:01:57]} 21. Rxe7 {[%clk 0:01:33]}  Rxe7 {[%clk 0:01:58]} 22. Re1 {[%clk 0:01:33]}  f4 {[%clk 0:01:55]} 23. Rxe7 {[%clk 0:01:19]}  Qxe7 {[%clk 0:01:55]} 24. h4 {[%clk 0:01:19]}  h6 {[%clk 0:01:50]} 25. Qe1 {[%clk 0:01:11]}  Be5 {[%clk 0:01:39]} 26. Qe2 {[%clk 0:00:51]}  Qf6 {[%clk 0:01:33]} 27. hxg5 {[%clk 0:00:44]}  hxg5 {[%clk 0:01:32]} 28. Qh5 {[%clk 0:00:43]}  Kg7 {[%clk 0:01:23]} 29. b4 {[%clk 0:00:39]}  g4 {[%clk 0:01:20]} 30. Kf2 {[%clk 0:00:33]}  f3 {[%clk 0:01:08]} 31. g3 {[%clk 0:00:33]}  Bf5 {[%clk 0:00:55]} 32. Bg5 {[%clk 0:00:31]}  Qg6 {[%clk 0:00:50]} 33. Qxg6+ {[%clk 0:00:31]}  Bxg6 {[%clk 0:00:48]} 34. Bd8 {[%clk 0:00:30]}  Kf7 {[%clk 0:00:46]} 35. b5 {[%clk 0:00:29]}  Ke8 {[%clk 0:00:44]} 36. Bc7 {[%clk 0:00:28]}  Kd7 {[%clk 0:00:41]} 37. Bb8 {[%clk 0:00:28]}  b6 {[%clk 0:00:37]} 38. Bxa7 {[%clk 0:00:23]}  bxa5 {[%clk 0:00:36]} 39. b6 {[%clk 0:00:23]}  Bf4 {[%clk 0:00:24]} 40. gxf4 {[%clk 0:00:23]}  Bh5 {[%clk 0:00:22]} 41. b7 {[%clk 0:00:22]}  g3+ {[%clk 0:00:23]} 42. Kxg3 {[%clk 0:00:22]}  f2 {[%clk 0:00:24]} 43. Kxf2 {[%clk 0:00:23]} 1-0


[Site "https://www.chess.com"]

[Event "Titled Tuesday Blitz May 24 Late 2022"]
[White "Tisaj, Domen"]
[Black "Meunier-Pion, Jean"]
[WhiteFideId "14628708"]
[BlackFideId "20685327"]
[WhiteElo "2326"]
[BlackElo "2124"]
[Result "1-0"]
[Round "05"]
[TimeControl "180+1"]
[Date "2022.05.25"]
[WhiteClock "0:00:16"]
[BlackClock "0:00:01"]

1. a3 {[%clk 0:03:00]}  e5 {[%clk 0:02:59]} 2. e4 {[%clk 0:02:59]}  Nf6 {[%clk 0:02:59]} 3. Nc3 {[%clk 0:02:59]}  Nc6 {[%clk 0:02:57]} 4. Nf3 {[%clk 0:02:59]}  Be7 {[%clk 0:02:55]} 5. Bc4 {[%clk 0:02:58]}  O-O {[%clk 0:02:55]} 6. d3 {[%clk 0:02:57]}  d6 {[%clk 0:02:53]} 7. O-O {[%clk 0:02:57]}  Be6 {[%clk 0:02:45]} 8. h3 {[%clk 0:02:54]}  Bxc4 {[%clk 0:02:27]} 9. dxc4 {[%clk 0:02:55]}  Qd7 {[%clk 0:02:19]} 10. Qd3 {[%clk 0:02:54]}  Nh5 {[%clk 0:02:14]} 11. Nd5 {[%clk 0:02:49]}  Nd8 {[%clk 0:02:08]} 12. g4 {[%clk 0:02:35]}  Nf6 {[%clk 0:02:03]} 13. Nxe5 {[%clk 0:02:35]}  Qe6 {[%clk 0:01:44]} 14. Nf3 {[%clk 0:01:51]}  Rc8 {[%clk 0:01:32]} 15. Nd4 {[%clk 0:01:46]}  Qd7 {[%clk 0:01:27]} 16. Nf5 {[%clk 0:01:46]}  Nc6 {[%clk 0:01:27]} 17. Nfxe7+ {[%clk 0:01:44]}  Nxe7 {[%clk 0:01:27]} 18. Nxf6+ {[%clk 0:01:43]}  gxf6 {[%clk 0:01:27]} 19. Bh6 {[%clk 0:01:28]}  Rfe8 {[%clk 0:01:27]} 20. Qd4 {[%clk 0:01:28]}  Qe6 {[%clk 0:01:26]} 21. f4 {[%clk 0:01:26]}  Nc6 {[%clk 0:01:26]} 22. Qc3 {[%clk 0:01:25]}  Qxe4 {[%clk 0:01:26]} 23. Qxf6 {[%clk 0:01:25]}  Qd4+ {[%clk 0:01:23]} 24. Qxd4 {[%clk 0:01:25]}  Nxd4 {[%clk 0:01:24]} 25. Rf2 {[%clk 0:01:24]}  Re6 {[%clk 0:00:54]} 26. Bg5 {[%clk 0:01:23]}  Re3 {[%clk 0:00:53]} 27. Kg2 {[%clk 0:01:20]}  Rce8 {[%clk 0:00:53]} 28. Rd1 {[%clk 0:01:20]}  c5 {[%clk 0:00:52]} 29. c3 {[%clk 0:01:18]}  Ne2 {[%clk 0:00:49]} 30. Rxd6 {[%clk 0:01:16]}  Rg3+ {[%clk 0:00:49]} 31. Kh2 {[%clk 0:01:16]}  Rge3 {[%clk 0:00:28]} 32. f5 {[%clk 0:01:10]}  R3e4 {[%clk 0:00:28]} 33. Bh6 {[%clk 0:01:08]}  Rxc4 {[%clk 0:00:21]} 34. Rd7 {[%clk 0:00:51]}  b5 {[%clk 0:00:21]} 35. Rxa7 {[%clk 0:00:49]}  b4 {[%clk 0:00:22]} 36. axb4 {[%clk 0:00:49]}  cxb4 {[%clk 0:00:23]} 37. cxb4 {[%clk 0:00:33]}  Rxb4 {[%clk 0:00:23]} 38. Rd7 {[%clk 0:00:29]}  Rxb2 {[%clk 0:00:22]} 39. f6 {[%clk 0:00:21]}  Rb3 {[%clk 0:00:20]} 40. Re7 {[%clk 0:00:19]}  Rxe7 {[%clk 0:00:09]} 41. fxe7 {[%clk 0:00:20]}  Rb8 {[%clk 0:00:10]} 42. Rxe2 {[%clk 0:00:20]}  Re8 {[%clk 0:00:10]} 43. Bf8 {[%clk 0:00:20]}  f6 {[%clk 0:00:07]} 44. Kg3 {[%clk 0:00:18]}  Kf7 {[%clk 0:00:08]} 45. Kf4 {[%clk 0:00:18]}  Kg6 {[%clk 0:00:07]} 46. h4 {[%clk 0:00:18]}  Kf7 {[%clk 0:00:06]} 47. h5 {[%clk 0:00:18]}  Kg8 {[%clk 0:00:05]} 48. Kf5 {[%clk 0:00:18]}  Kf7 {[%clk 0:00:06]} 49. Re6 {[%clk 0:00:17]}  h6 {[%clk 0:00:05]} 50. Rxf6+ {[%clk 0:00:17]}  Kg8 {[%clk 0:00:05]} 51. Rg6+ {[%clk 0:00:17]}  Kh7 {[%clk 0:00:04]} 52. Rxh6+ {[%clk 0:00:17]}  Kg8 {[%clk 0:00:04]} 53. Rg6+ {[%clk 0:00:17]}  Kh7 {[%clk 0:00:05]} 54. Rg7+ {[%clk 0:00:17]}  Kh8 {[%clk 0:00:05]} 55. Rf7 {[%clk 0:00:18]}  Kg8 {[%clk 0:00:05]} 56. Kg6 {[%clk 0:00:17]}  Rc8 {[%clk 0:00:03]} 57. Bg7 {[%clk 0:00:16]}  Rc6+ {[%clk 0:00:03]} 58. Bf6 {[%clk 0:00:16]}  Rc8 {[%clk 0:00:01]} 59. Rg7+ {[%clk 0:00:14]}  Kh8 {[%clk 0:00:01]} 60. Rh7+ {[%clk 0:00:15]}  Kg8 {[%clk 0:00:01]} 61. Rh8# {[%clk 0:00:16]} 1-0


[Site "https://www.chess.com"]

[Event "Titled Tuesday Blitz May 24 Late 2022"]
[White "Villiers, Thomas"]
[Black "Gatterer, Florian"]
[WhiteFideId "427209"]
[BlackFideId "811688"]
[WhiteElo "2164"]
[BlackElo "2218"]
[Result "1/2-1/2"]
[Round "05"]
[TimeControl "180+1"]
[Date "2022.05.25"]
[WhiteClock "0:00:16"]
[BlackClock "0:00:10"]

1. e4 {[%clk 0:03:00]}  c5 {[%clk 0:02:57]} 2. Nf3 {[%clk 0:03:00]}  Nc6 {[%clk 0:02:57]} 3. d4 {[%clk 0:03:00]}  cxd4 {[%clk 0:02:57]} 4. Nxd4 {[%clk 0:03:01]}  g6 {[%clk 0:02:58]} 5. Nc3 {[%clk 0:03:00]}  Bg7 {[%clk 0:02:57]} 6. Be3 {[%clk 0:03:00]}  Nf6 {[%clk 0:02:56]} 7. Be2 {[%clk 0:03:00]}  O-O {[%clk 0:02:54]} 8. O-O {[%clk 0:02:59]}  d5 {[%clk 0:02:54]} 9. exd5 {[%clk 0:02:55]}  Nb4 {[%clk 0:02:54]} 10. d6 {[%clk 0:02:48]}  Qxd6 {[%clk 0:02:53]} 11. a3 {[%clk 0:02:35]}  Nbd5 {[%clk 0:02:52]} 12. Ndb5 {[%clk 0:02:33]}  Qd8 {[%clk 0:02:41]} 13. Bd4 {[%clk 0:02:25]}  a6 {[%clk 0:02:36]} 14. Nxd5 {[%clk 0:02:24]}  Nxd5 {[%clk 0:02:24]} 15. Bxg7 {[%clk 0:02:23]}  Kxg7 {[%clk 0:02:24]} 16. Nd4 {[%clk 0:02:19]}  e5 {[%clk 0:02:04]} 17. Nb3 {[%clk 0:02:11]}  Nf4 {[%clk 0:02:01]} 18. Bf3 {[%clk 0:02:06]}  Qf6 {[%clk 0:01:51]} 19. Nc5 {[%clk 0:02:01]}  Bf5 {[%clk 0:01:33]} 20. c4 {[%clk 0:01:50]}  Rac8 {[%clk 0:01:30]} 21. Nxb7 {[%clk 0:01:45]}  Rxc4 {[%clk 0:01:26]} 22. Nd6 {[%clk 0:01:44]}  Rd4 {[%clk 0:01:20]} 23. Nxf5+ {[%clk 0:01:42]}  Qxf5 {[%clk 0:01:18]} 24. Qb3 {[%clk 0:01:17]}  Rd3 {[%clk 0:01:17]} 25. Qb7 {[%clk 0:01:16]}  Rfd8 {[%clk 0:00:47]} 26. Be4 {[%clk 0:01:12]}  R3d7 {[%clk 0:00:32]} 27. Bxf5 {[%clk 0:01:12]}  Rxb7 {[%clk 0:00:32]} 28. Be4 {[%clk 0:01:10]}  Rxb2 {[%clk 0:00:31]} 29. g3 {[%clk 0:01:04]}  Ne2+ {[%clk 0:00:29]} 30. Kg2 {[%clk 0:01:04]}  Nd4 {[%clk 0:00:29]} 31. Rfc1 {[%clk 0:01:02]}  Rd7 {[%clk 0:00:24]} 32. Rc8 {[%clk 0:00:58]}  f5 {[%clk 0:00:23]} 33. Bd3 {[%clk 0:00:56]}  e4 {[%clk 0:00:22]} 34. Bxa6 {[%clk 0:00:56]}  e3 {[%clk 0:00:22]} 35. Rf1 {[%clk 0:00:51]}  Ra7 {[%clk 0:00:21]} 36. Bc4 {[%clk 0:00:42]}  Rxf2+ {[%clk 0:00:18]} 37. Rxf2 {[%clk 0:00:41]}  exf2 {[%clk 0:00:18]} 38. Kxf2 {[%clk 0:00:30]}  Rxa3 {[%clk 0:00:18]} 39. Rc7+ {[%clk 0:00:30]}  Kh6 {[%clk 0:00:17]} 40. Bg8 {[%clk 0:00:28]}  Kg5 {[%clk 0:00:17]} 41. h4+ {[%clk 0:00:24]}  Kf6 {[%clk 0:00:17]} 42. Rxh7 {[%clk 0:00:21]}  Rc3 {[%clk 0:00:13]} 43. Rf7+ {[%clk 0:00:20]}  Ke5 {[%clk 0:00:14]} 44. Re7+ {[%clk 0:00:20]}  Kd6 {[%clk 0:00:13]} 45. Rg7 {[%clk 0:00:20]}  Ke5 {[%clk 0:00:12]} 46. Rxg6 {[%clk 0:00:20]}  Rc2+ {[%clk 0:00:12]} 47. Kf1 {[%clk 0:00:20]}  Nf3 {[%clk 0:00:11]} 48. Re6+ {[%clk 0:00:18]}  Kd4 {[%clk 0:00:11]} 49. Rd6+ {[%clk 0:00:17]}  Ke5 {[%clk 0:00:11]} 50. Rd1 {[%clk 0:00:16]}  Nh2+ {[%clk 0:00:10]} 51. Kg1 {[%clk 0:00:15]}  Nf3+ {[%clk 0:00:10]} 52. Kf1 {[%clk 0:00:16]}  Nh2+ {[%clk 0:00:10]} 53. Kg1 {[%clk 0:00:16]}  Nf3+ {[%clk 0:00:10]} 54. Kf1 {[%clk 0:00:16]} 1/2-1/2


[Site "https://www.chess.com"]